[Event "*** Qualifier 4: Titled Tuesday 3|2 Blitz"]
[Site "Chess.com"]
[Date "2017.04.25"]
[Round "2"]
[White "Schemato"]
[Black "TenisMaster"]
[Result "0-1"]
[WhiteElo "2246"]
[BlackElo "2687"]
[TimeControl "180+2"]
[EndTime "13:21:40 PDT"]
[Termination "TenisMaster won by checkmate"]

1. c4 {[%clk 0:03:02]} 1... e5 {[%clk 0:03:00]} 2. g3 {[%clk 0:03:02.8]} 2...
Nf6 {[%clk 0:03:00.9]} 3. Bg2 {[%clk 0:03:04]} 3... Nc6 {[%clk 0:03:00.5]} 4.
Nc3 {[%clk 0:03:04.7]} 4... Bc5 {[%clk 0:02:59.7]} 5. a3 {[%clk 0:03:03.9]} 5...
a6 {[%clk 0:02:59.2]} 6. e3 {[%clk 0:03:04.6]} 6... d6 {[%clk 0:02:59.5]} 7.
Nge2 {[%clk 0:03:06.1]} 7... Ba7 {[%clk 0:02:59.5]} 8. O-O {[%clk 0:03:05.7]}
8... O-O {[%clk 0:02:59.3]} 9. h3 {[%clk 0:03:07]} 9... Bf5 {[%clk 0:02:52.5]}
10. d4 {[%clk 0:03:05.7]} 10... exd4 {[%clk 0:02:47.7]} 11. exd4 {[%clk
0:03:04.6]} 11... h6 {[%clk 0:02:47.6]} 12. Be3 {[%clk 0:03:00.6]} 12... Re8
{[%clk 0:02:43.7]} 13. g4 {[%clk 0:02:49.1]} 13... Bh7 {[%clk 0:02:42.8]} 14.
Ng3 {[%clk 0:02:50.1]} 14... Rb8 {[%clk 0:02:34.5]} 15. b4 {[%clk 0:02:46.2]}
15... Ne7 {[%clk 0:02:02.8]} 16. Re1 {[%clk 0:02:32.1]} 16... Ng6 {[%clk
0:01:59.5]} 17. Nf5 {[%clk 0:02:23.6]} 17... Nf8 {[%clk 0:01:58.8]} 18. Ng3
{[%clk 0:02:20.3]} 18... c6 {[%clk 0:01:50.4]} 19. Qd2 {[%clk 0:02:10.3]} 19...
d5 {[%clk 0:01:45.8]} 20. Bf4 {[%clk 0:01:57.7]} 20... Rc8 {[%clk 0:01:44]} 21.
c5 {[%clk 0:01:53.1]} 21... Ne6 {[%clk 0:01:39.9]} 22. Be5 {[%clk 0:01:49.9]}
22... Nd7 {[%clk 0:01:40.3]} 23. Bd6 {[%clk 0:01:50.2]} 23... Qh4 {[%clk
0:01:37.6]} 24. Re3 {[%clk 0:01:41.7]} 24... Ng5 {[%clk 0:01:34.6]} 25. Nf1
{[%clk 0:01:28]} 25... Bb8 {[%clk 0:01:24]} 26. Bxb8 {[%clk 0:01:24]} 26... Rxb8
{[%clk 0:01:24.1]} 27. Rae1 {[%clk 0:01:25.7]} 27... Rxe3 {[%clk 0:01:24.1]} 28.
Qxe3 {[%clk 0:01:23]} 28... Ne6 {[%clk 0:01:24.3]} 29. Ng3 {[%clk 0:01:08.4]}
29... Ndf8 {[%clk 0:01:17.8]} 30. Nce2 {[%clk 0:01:03.6]} 30... Re8 {[%clk
0:01:15.7]} 31. Nf4 {[%clk 0:01:01.6]} 31... Nc7 {[%clk 0:01:14.8]} 32. Qd2
{[%clk 0:00:59.3]} 32... Rxe1+ {[%clk 0:01:15]} 33. Qxe1 {[%clk 0:01:01.2]}
33... Qf6 {[%clk 0:01:15.8]} 34. Qe3 {[%clk 0:00:54.6]} 34... Nfe6 {[%clk
0:01:15.7]} 35. Ngh5 {[%clk 0:00:52]} 35... Qxd4 {[%clk 0:01:10.4]} 36. Qg3
{[%clk 0:00:39.4]} 36... Nxf4 {[%clk 0:01:08.8]} 37. Nxf4 {[%clk 0:00:39.8]}
37... Qe5 {[%clk 0:01:06.4]} 38. Qf3 {[%clk 0:00:25.6]} 38... Nb5 {[%clk
0:01:06.7]} 39. Nh5 {[%clk 0:00:22.4]} 39... Nd4 {[%clk 0:01:05.7]} 40. Qd1
{[%clk 0:00:15.7]} 40... Ne2+ {[%clk 0:00:58]} 41. Kf1 {[%clk 0:00:15.8]} 41...
Nc3 {[%clk 0:00:57.7]} 42. Qd2 {[%clk 0:00:16.5]} 42... d4 {[%clk 0:00:55.3]}
43. Ng3 {[%clk 0:00:16.6]} 43... d3 {[%clk 0:00:53.4]} 44. Bf3 {[%clk
0:00:15.8]} 44... Nb5 {[%clk 0:00:52.7]} 45. a4 {[%clk 0:00:14.9]} 45... Nd4
{[%clk 0:00:52.9]} 46. Kg2 {[%clk 0:00:15.6]} 46... Nxf3 {[%clk 0:00:48.4]} 47.
Kxf3 {[%clk 0:00:16.8]} 47... Qd5+ {[%clk 0:00:49.7]} 48. Ke3 {[%clk 0:00:16]}
48... Qe5+ {[%clk 0:00:50.4]} 49. Kf3 {[%clk 0:00:16.4]} 49... Bg6 {[%clk
0:00:51.3]} 50. h4 {[%clk 0:00:15.9]} 50... f6 {[%clk 0:00:46.8]} 51. h5 {[%clk
0:00:16.6]} 51... Bf7 {[%clk 0:00:47.8]} 52. Nf5 {[%clk 0:00:17.6]} 52... Bd5#
{[%clk 0:00:48.6]} 0-1

[Event "*** Qualifier 4: Titled Tuesday 3|2 Blitz"]
[Site "Chess.com"]
[Date "2017.04.25"]
[Round "2"]
[White "pastouche06"]
[Black "NMJeevanK"]
[Result "1-0"]
[WhiteElo "2318"]
[BlackElo "2397"]
[TimeControl "180+2"]
[EndTime "13:21:45 PDT"]
[Termination "pastouche06 won by checkmate"]

1. c4 {[%clk 0:03:02]} 1... e5 {[%clk 0:03:00.9]} 2. Nc3 {[%clk 0:03:01.7]} 2...
Nc6 {[%clk 0:03:02.3]} 3. g3 {[%clk 0:03:01.8]} 3... Nf6 {[%clk 0:03:03.8]} 4.
Bg2 {[%clk 0:03:03]} 4... Bb4 {[%clk 0:03:05.3]} 5. e4 {[%clk 0:03:02.2]} 5...
O-O {[%clk 0:03:05.7]} 6. d3 {[%clk 0:02:53.6]} 6... d6 {[%clk 0:03:05.8]} 7.
Nf3 {[%clk 0:02:54.7]} 7... Bg4 {[%clk 0:03:06.6]} 8. h3 {[%clk 0:02:55.1]} 8...
Be6 {[%clk 0:03:04.5]} 9. O-O {[%clk 0:02:54.4]} 9... Bxc3 {[%clk 0:03:04.5]}
10. bxc3 {[%clk 0:02:56.3]} 10... Qd7 {[%clk 0:03:06.1]} 11. Kh2 {[%clk
0:02:56.1]} 11... Ne8 {[%clk 0:02:59.4]} 12. Rb1 {[%clk 0:02:53.9]} 12... f5
{[%clk 0:02:57.2]} 13. exf5 {[%clk 0:02:51.3]} 13... Bxf5 {[%clk 0:02:58.2]} 14.
Nh4 {[%clk 0:02:51.2]} 14... Be6 {[%clk 0:02:43.8]} 15. Rxb7 {[%clk 0:02:46]}
15... Nd8 {[%clk 0:02:19.2]} 16. Rb1 {[%clk 0:02:40.6]} 16... Rc8 {[%clk
0:02:19.6]} 17. Be3 {[%clk 0:02:36.6]} 17... c6 {[%clk 0:02:19.4]} 18. Qa4
{[%clk 0:02:30.9]} 18... Rc7 {[%clk 0:02:20.3]} 19. Rb8 {[%clk 0:02:26.5]} 19...
Nf6 {[%clk 0:02:18.2]} 20. Rfb1 {[%clk 0:02:16.5]} 20... Qf7 {[%clk 0:02:13.4]}
21. Nf3 {[%clk 0:02:15.6]} 21... Qh5 {[%clk 0:02:10.4]} 22. Bxa7 {[%clk
0:01:53.6]} 22... Bxh3 {[%clk 0:01:55.7]} 23. Bxh3 {[%clk 0:01:54.7]} 23... Qxf3
{[%clk 0:01:56.4]} 24. Qd1 {[%clk 0:01:41.9]} 24... Qxd1 {[%clk 0:01:51.6]} 25.
Rxd1 {[%clk 0:01:43.8]} 25... Rxa7 {[%clk 0:01:52.4]} 26. Rb2 {[%clk 0:01:34.7]}
26... Nf7 {[%clk 0:01:46.5]} 27. Ra1 {[%clk 0:01:28]} 27... Ng5 {[%clk
0:01:46.9]} 28. Bg2 {[%clk 0:01:28.5]} 28... d5 {[%clk 0:01:44.4]} 29. c5 {[%clk
0:01:27.5]} 29... Raf7 {[%clk 0:01:43]} 30. a4 {[%clk 0:01:27.3]} 30... Ng4+
{[%clk 0:01:43.9]} 31. Kg1 {[%clk 0:01:28.7]} 31... Nxf2 {[%clk 0:01:42.6]} 32.
a5 {[%clk 0:01:30.1]} 32... Nxd3 {[%clk 0:01:43.2]} 33. Rb6 {[%clk 0:01:30.9]}
33... Nxc5 {[%clk 0:01:23.9]} 34. Rxc6 {[%clk 0:01:31.2]} 34... Nce4 {[%clk
0:01:23.7]} 35. a6 {[%clk 0:01:30.4]} 35... Ra7 {[%clk 0:01:12.4]} 36. c4 {[%clk
0:01:29.4]} 36... dxc4 {[%clk 0:00:55.7]} 37. Rxc4 {[%clk 0:01:31.3]} 37... Nxg3
{[%clk 0:00:52.9]} 38. Rb4 {[%clk 0:01:27.7]} 38... Rf6 {[%clk 0:00:36.6]} 39.
Bd5+ {[%clk 0:01:26.7]} 39... Kf8 {[%clk 0:00:18.9]} 40. Rb8+ {[%clk 0:01:27.2]}
40... Ke7 {[%clk 0:00:20.4]} 41. Rb7+ {[%clk 0:01:28.8]} 41... Rxb7 {[%clk
0:00:21.9]} 42. Bxb7 {[%clk 0:01:30.7]} 42... Ne2+ {[%clk 0:00:21]} 43. Kg2
{[%clk 0:01:31.2]} 43... Nf4+ {[%clk 0:00:22]} 44. Kg3 {[%clk 0:01:32.2]} 44...
Nh5+ {[%clk 0:00:23.4]} 45. Kg4 {[%clk 0:01:33]} 45... Rf4+ {[%clk 0:00:20.4]}
46. Kxg5 {[%clk 0:01:30.1]} 46... Ng3 {[%clk 0:00:13.3]} 47. a7 {[%clk
0:01:26.4]} 47... Kf7 {[%clk 0:00:07.1]} 48. Bd5+ {[%clk 0:01:26.2]} 48... Ke7
{[%clk 0:00:08.6]} 49. a8=Q {[%clk 0:01:26.8]} 49... h6+ {[%clk 0:00:07.5]} 50.
Kg6 {[%clk 0:01:28.1]} 50... Rf6+ {[%clk 0:00:08.7]} 51. Kh7 {[%clk 0:01:29.2]}
51... Rd6 {[%clk 0:00:08.5]} 52. Ra7+ {[%clk 0:01:28.7]} 52... Rd7 {[%clk
0:00:09]} 53. Rxd7+ {[%clk 0:01:27.6]} 53... Kxd7 {[%clk 0:00:10.9]} 54. Kxg7
{[%clk 0:01:28.9]} 54... Nf5+ {[%clk 0:00:10.6]} 55. Kf6 {[%clk 0:01:29.9]}
55... Nd6 {[%clk 0:00:12.5]} 56. Qc6+ {[%clk 0:01:29.1]} 56... Kd8 {[%clk
0:00:13.2]} 57. Qxd6+ {[%clk 0:01:30.1]} 57... Kc8 {[%clk 0:00:14.7]} 58. Bc6
{[%clk 0:01:31.5]} 58... e4 {[%clk 0:00:13.5]} 59. Qd7+ {[%clk 0:01:33.4]} 59...
Kb8 {[%clk 0:00:14.3]} 60. Qb7# {[%clk 0:01:35.3]} 1-0

[Event "*** Qualifier 4: Titled Tuesday 3|2 Blitz"]
[Site "Chess.com"]
[Date "2017.04.25"]
[Round "2"]
[White "gmcorrales"]
[Black "Iball95"]
[Result "1-0"]
[WhiteElo "2606"]
[BlackElo "2526"]
[TimeControl "180+2"]
[EndTime "13:21:50 PDT"]
[Termination "gmcorrales won by resignation"]

1. d4 {[%clk 0:03:02]} 1... Nf6 {[%clk 0:03:00.2]} 2. Bg5 {[%clk 0:03:02.3]}
2... Ne4 {[%clk 0:03:00.7]} 3. Bf4 {[%clk 0:03:02.5]} 3... d5 {[%clk 0:03:01.7]}
4. e3 {[%clk 0:03:03.8]} 4... c5 {[%clk 0:02:59.5]} 5. Bd3 {[%clk 0:03:04.8]}
5... Nf6 {[%clk 0:02:59.6]} 6. Nf3 {[%clk 0:02:59.5]} 6... Nc6 {[%clk
0:02:56.1]} 7. O-O {[%clk 0:02:58.5]} 7... Bg4 {[%clk 0:02:53.5]} 8. c3 {[%clk
0:02:59.2]} 8... e6 {[%clk 0:02:54.2]} 9. Nbd2 {[%clk 0:02:58.2]} 9... Bd6
{[%clk 0:02:54.3]} 10. Bg3 {[%clk 0:02:54]} 10... O-O {[%clk 0:02:53.9]} 11. Bh4
{[%clk 0:02:22.7]} 11... Rc8 {[%clk 0:02:46]} 12. h3 {[%clk 0:02:23.6]} 12...
Bh5 {[%clk 0:02:46.4]} 13. dxc5 {[%clk 0:02:09.4]} 13... Bxc5 {[%clk 0:02:46.5]}
14. Qe2 {[%clk 0:02:09]} 14... Be7 {[%clk 0:02:31.6]} 15. Rad1 {[%clk
0:02:05.2]} 15... Qb6 {[%clk 0:02:22.5]} 16. Nb3 {[%clk 0:02:03.8]} 16... Bg6
{[%clk 0:02:21.9]} 17. Bxg6 {[%clk 0:02:04.3]} 17... hxg6 {[%clk 0:02:23.8]} 18.
Bxf6 {[%clk 0:02:03.8]} 18... Bxf6 {[%clk 0:02:24.4]} 19. e4 {[%clk 0:02:05.3]}
19... dxe4 {[%clk 0:02:24.1]} 20. Qxe4 {[%clk 0:02:07.2]} 20... Rfd8 {[%clk
0:02:24.9]} 21. g4 {[%clk 0:02:07.6]} 21... Qb5 {[%clk 0:02:18.7]} 22. Kg2
{[%clk 0:02:05.6]} 22... g5 {[%clk 0:02:16.6]} 23. Qe3 {[%clk 0:01:48.7]} 23...
a5 {[%clk 0:02:15.1]} 24. Rxd8+ {[%clk 0:01:01.7]} 24... Rxd8 {[%clk 0:02:17]}
25. Qc5 {[%clk 0:01:02.7]} 25... Qe2 {[%clk 0:01:48.7]} 26. Nxa5 {[%clk
0:00:43.3]} 26... Rd5 {[%clk 0:01:45]} 27. Qc4 {[%clk 0:00:44.1]} 27... Rd3
{[%clk 0:00:36.5]} 28. Ng1 {[%clk 0:00:44.9]} 28... Qc2 {[%clk 0:00:16.8]} 29.
Nxc6 {[%clk 0:00:45.9]} 29... bxc6 {[%clk 0:00:18.7]} 30. Qe4 {[%clk 0:00:44.9]}
30... Rd2 {[%clk 0:00:19.3]} 31. Qxc2 {[%clk 0:00:45.6]} 31... Rxc2 {[%clk
0:00:21.2]} 32. Rb1 {[%clk 0:00:45.3]} 32... c5 {[%clk 0:00:20.7]} 33. Nf3
{[%clk 0:00:44.3]} 33... Bd8 {[%clk 0:00:21]} 34. Ne5 {[%clk 0:00:37.4]} 34...
f6 {[%clk 0:00:20.1]} 35. Nc4 {[%clk 0:00:38.5]} 35... Kf7 {[%clk 0:00:18.6]}
36. Rd1 {[%clk 0:00:38.7]} 36... Ke7 {[%clk 0:00:19.5]} 37. a4 {[%clk
0:00:38.6]} 37... e5 {[%clk 0:00:17.6]} 38. Kf3 {[%clk 0:00:36.8]} 38... g6
{[%clk 0:00:17.7]} 39. Ke3 {[%clk 0:00:37.7]} 39... f5 {[%clk 0:00:17.2]} 40.
Rd2 {[%clk 0:00:27.5]} 40... Rc1 {[%clk 0:00:16.6]} 41. Nxe5 {[%clk 0:00:26.4]}
41... Bc7 {[%clk 0:00:08.5]} 42. Rd7+ {[%clk 0:00:15.8]} 42... Ke6 {[%clk
0:00:09.6]} 43. Rxc7 {[%clk 0:00:17.7]} 43... Kxe5 {[%clk 0:00:10.3]} 44. Rxc5+
{[%clk 0:00:18.7]} 44... Kf6 {[%clk 0:00:11.9]} 45. Rc6+ {[%clk 0:00:19.4]}
45... Ke5 {[%clk 0:00:12.6]} 46. Rxg6 {[%clk 0:00:20.1]} 46... f4+ {[%clk
0:00:11.9]} 47. Kf3 {[%clk 0:00:21.3]} 47... Rh1 {[%clk 0:00:11.2]} 48. Rxg5+
{[%clk 0:00:22.3]} 1-0

[Event "*** Qualifier 4: Titled Tuesday 3|2 Blitz"]
[Site "Chess.com"]
[Date "2017.04.25"]
[Round "2"]
[White "FelixBlohberger"]
[Black "Makalexa"]
[Result "1/2-1/2"]
[WhiteElo "2259"]
[BlackElo "2177"]
[TimeControl "180+2"]
[EndTime "13:21:55 PDT"]
[Termination "Game drawn by repetition"]

1. c4 {[%clk 0:03:02]} 1... g6 {[%clk 0:02:51.9]} 2. e4 {[%clk 0:03:01.9]} 2...
d6 {[%clk 0:02:51.6]} 3. d4 {[%clk 0:03:02.7]} 3... Nf6 {[%clk 0:02:52.1]} 4.
Nc3 {[%clk 0:03:03.9]} 4... Bg7 {[%clk 0:02:53.2]} 5. Be2 {[%clk 0:03:02.4]}
5... O-O {[%clk 0:02:54.2]} 6. Nf3 {[%clk 0:02:58.9]} 6... e5 {[%clk 0:02:54.8]}
7. O-O {[%clk 0:03:00]} 7... Nc6 {[%clk 0:02:56.1]} 8. dxe5 {[%clk 0:03:00.3]}
8... Nxe5 {[%clk 0:02:45.1]} 9. Nxe5 {[%clk 0:03:00.8]} 9... dxe5 {[%clk
0:02:46.6]} 10. Be3 {[%clk 0:03:02.5]} 10... c6 {[%clk 0:02:38.3]} 11. Qa4
{[%clk 0:03:03.2]} 11... a6 {[%clk 0:02:31.4]} 12. Rfd1 {[%clk 0:03:03]} 12...
Qc7 {[%clk 0:02:31.8]} 13. c5 {[%clk 0:03:03]} 13... Be6 {[%clk 0:02:28.9]} 14.
f3 {[%clk 0:03:03.2]} 14... Rad8 {[%clk 0:02:25]} 15. b4 {[%clk 0:03:02.8]}
15... Nh5 {[%clk 0:02:25]} 16. Bf1 {[%clk 0:03:01.1]} 16... Nf4 {[%clk
0:02:24.7]} 17. Rxd8 {[%clk 0:02:56.9]} 17... Rxd8 {[%clk 0:02:24.8]} 18. Rd1
{[%clk 0:02:58.8]} 18... Rxd1 {[%clk 0:02:21.8]} 19. Qxd1 {[%clk 0:03:00.7]}
19... Qe7 {[%clk 0:02:19.8]} 20. g3 {[%clk 0:03:00.5]} 20... Nh5 {[%clk
0:02:02.6]} 21. a4 {[%clk 0:02:55.3]} 21... f5 {[%clk 0:01:51]} 22. exf5 {[%clk
0:02:44.7]} 22... gxf5 {[%clk 0:01:52]} 23. Bf2 {[%clk 0:02:37.5]} 23... Nf6
{[%clk 0:01:42.2]} 24. b5 {[%clk 0:02:38.4]} 24... axb5 {[%clk 0:01:42.2]} 25.
axb5 {[%clk 0:02:39.1]} 25... Nd5 {[%clk 0:01:43.7]} 26. Nxd5 {[%clk 0:01:49.1]}
26... Bxd5 {[%clk 0:01:43.9]} 27. Qc2 {[%clk 0:01:23.2]} 27... e4 {[%clk
0:01:41.1]} 28. fxe4 {[%clk 0:01:24]} 28... fxe4 {[%clk 0:01:30.6]} 29. Be3
{[%clk 0:01:24.9]} 29... Qf6 {[%clk 0:01:23.7]} 30. Qf2 {[%clk 0:01:01]} 30...
Qc3 {[%clk 0:01:03.4]} 31. h4 {[%clk 0:00:47]} 31... h6 {[%clk 0:00:57.6]} 32.
Kh2 {[%clk 0:00:45.8]} 32... Qb2 {[%clk 0:00:54.8]} 33. Qxb2 {[%clk 0:00:43.7]}
33... Bxb2 {[%clk 0:00:54.8]} 34. b6 {[%clk 0:00:40.1]} 34... Kg7 {[%clk
0:00:53.8]} 35. Bh3 {[%clk 0:00:39.3]} 35... Bc4 {[%clk 0:00:52.2]} 36. Bf5
{[%clk 0:00:35.8]} 36... Bd3 {[%clk 0:00:49.7]} 37. g4 {[%clk 0:00:14]} 37...
Be5+ {[%clk 0:00:47.5]} 38. Kg2 {[%clk 0:00:13.8]} 38... Bf6 {[%clk 0:00:45.4]}
39. Kh3 {[%clk 0:00:13.2]} 39... Be5 {[%clk 0:00:40.5]} 40. g5 {[%clk
0:00:13.9]} 40... Bf1+ {[%clk 0:00:38.5]} 41. Kg4 {[%clk 0:00:10.3]} 41... Be2+
{[%clk 0:00:32.1]} 42. Kh3 {[%clk 0:00:11.7]} 42... Bf1+ {[%clk 0:00:22.6]} 43.
Kg4 {[%clk 0:00:12.8]} 43... Be2+ {[%clk 0:00:15.2]} 44. Kh3 {[%clk 0:00:14.1]}
44... Bf1+ {[%clk 0:00:15.9]} 45. Kg4 {[%clk 0:00:15.5]} 45... Be2+ {[%clk
0:00:16.6]} 46. Kh3 {[%clk 0:00:16.9]} 46... Bf1+ {[%clk 0:00:17.1]} 47. Kg4
{[%clk 0:00:18.3]} 1/2-1/2

[Event "*** Qualifier 4: Titled Tuesday 3|2 Blitz"]
[Site "Chess.com"]
[Date "2017.04.25"]
[Round "2"]
[White "nonscitis"]
[Black "ABDELAZEEZ-M"]
[Result "1-0"]
[WhiteElo "2340"]
[BlackElo "2167"]
[TimeControl "180+2"]
[EndTime "13:21:55 PDT"]
[Termination "nonscitis won by checkmate"]

1. e3 {[%clk 0:02:35.5]} 1... d5 {[%clk 0:03:00.2]} 2. c4 {[%clk 0:02:32.2]}
2... c6 {[%clk 0:03:01.6]} 3. d4 {[%clk 0:02:29.1]} 3... Nf6 {[%clk 0:03:02]} 4.
Nc3 {[%clk 0:02:28.4]} 4... e6 {[%clk 0:03:01.9]} 5. Nf3 {[%clk 0:02:27.8]} 5...
a6 {[%clk 0:03:02.5]} 6. b3 {[%clk 0:02:19.4]} 6... b5 {[%clk 0:03:01.6]} 7. Bd3
{[%clk 0:02:18.2]} 7... b4 {[%clk 0:03:00.1]} 8. Na4 {[%clk 0:02:17.6]} 8... Bb7
{[%clk 0:02:58.2]} 9. Ne5 {[%clk 0:02:13.3]} 9... Nbd7 {[%clk 0:02:58.4]} 10. f4
{[%clk 0:02:13.7]} 10... Bd6 {[%clk 0:02:56.6]} 11. c5 {[%clk 0:02:12.6]} 11...
Bxe5 {[%clk 0:02:56]} 12. fxe5 {[%clk 0:02:12.8]} 12... Ne4 {[%clk 0:02:49.4]}
13. O-O {[%clk 0:02:12.4]} 13... f5 {[%clk 0:02:36.1]} 14. Qh5+ {[%clk
0:01:15.8]} 14... g6 {[%clk 0:02:36.4]} 15. Qh6 {[%clk 0:01:16.1]} 15... Qe7
{[%clk 0:02:37.1]} 16. Bxe4 {[%clk 0:01:09.5]} 16... dxe4 {[%clk 0:02:37.2]} 17.
Bd2 {[%clk 0:01:09.8]} 17... a5 {[%clk 0:02:37.7]} 18. Be1 {[%clk 0:01:09]}
18... Ba6 {[%clk 0:02:36.7]} 19. Bh4 {[%clk 0:01:07.4]} 19... Qf7 {[%clk
0:02:37]} 20. Rf2 {[%clk 0:01:03.9]} 20... Bb5 {[%clk 0:02:26.7]} 21. Nb6 {[%clk
0:00:56]} 21... Nxb6 {[%clk 0:02:27]} 22. cxb6 {[%clk 0:00:56.5]} 22... a4
{[%clk 0:02:07.8]} 23. Rc1 {[%clk 0:00:42.2]} 23... axb3 {[%clk 0:02:04.9]} 24.
axb3 {[%clk 0:00:42.4]} 24... Kd7 {[%clk 0:01:59.5]} 25. Rfc2 {[%clk 0:00:26.3]}
25... Rhb8 {[%clk 0:01:58]} 26. Be1 {[%clk 0:00:26.2]} 26... Rxb6 {[%clk
0:01:53.6]} 27. Bxb4 {[%clk 0:00:22.9]} 27... Bd3 {[%clk 0:01:54.2]} 28. Bc5
{[%clk 0:00:17.4]} 28... Rxb3 {[%clk 0:01:54.8]} 29. Rf2 {[%clk 0:00:18.1]}
29... Bb5 {[%clk 0:01:49.1]} 30. h4 {[%clk 0:00:17.9]} 30... Ra4 {[%clk
0:01:46.6]} 31. Re1 {[%clk 0:00:17.6]} 31... Bd3 {[%clk 0:01:36.2]} 32. Rd2
{[%clk 0:00:16.6]} 32... Bc4 {[%clk 0:01:35.6]} 33. Rf2 {[%clk 0:00:17.1]} 33...
Bb5 {[%clk 0:01:35.7]} 34. Rd2 {[%clk 0:00:17.1]} 34... Rd3 {[%clk 0:01:36]} 35.
Rb2 {[%clk 0:00:17]} 35... f4 {[%clk 0:01:31.9]} 36. Qxf4 {[%clk 0:00:15.9]}
36... Qxf4 {[%clk 0:01:32.2]} 37. exf4 {[%clk 0:00:17]} 37... Rc4 {[%clk
0:01:28.1]} 38. Kf2 {[%clk 0:00:17.1]} 38... Ra4 {[%clk 0:01:14.6]} 39. Rxe4
{[%clk 0:00:17.3]} 39... Kc7 {[%clk 0:01:14.6]} 40. Re3 {[%clk 0:00:17]} 40...
Rxe3 {[%clk 0:01:12.6]} 41. Kxe3 {[%clk 0:00:18.9]} 41... Rc4 {[%clk 0:01:14.5]}
42. Kf3 {[%clk 0:00:19]} 42... Rc3+ {[%clk 0:01:14.9]} 43. Kg4 {[%clk
0:00:19.7]} 43... h5+ {[%clk 0:01:16]} 44. Kg5 {[%clk 0:00:20.5]} 44... Rg3+
{[%clk 0:01:17.9]} 45. Kf6 {[%clk 0:00:21.5]} 45... Bc4 {[%clk 0:01:18.1]} 46.
Rc2 {[%clk 0:00:21.4]} 46... Bd5 {[%clk 0:01:18.9]} 47. Bd6+ {[%clk 0:00:21.9]}
47... Kd7 {[%clk 0:01:19.6]} 48. Rb2 {[%clk 0:00:22.9]} 48... Bxg2 {[%clk
0:01:18.7]} 49. Rb7+ {[%clk 0:00:23.3]} 49... Kc8 {[%clk 0:01:19.4]} 50. Rc7+
{[%clk 0:00:24.2]} 50... Kd8 {[%clk 0:01:20.7]} 51. Kxe6 {[%clk 0:00:22.2]}
51... Bd5+ {[%clk 0:01:22.6]} 52. Kf6 {[%clk 0:00:22.7]} 52... Rg4 {[%clk
0:01:23.9]} 53. e6 {[%clk 0:00:23.6]} 53... Bxe6 {[%clk 0:01:15.9]} 54. Kxe6
{[%clk 0:00:24.2]} 54... Rxh4 {[%clk 0:01:17.1]} 55. Rh7 {[%clk 0:00:24]} 55...
Kc8 {[%clk 0:01:17.1]} 56. Rc7+ {[%clk 0:00:24.5]} 56... Kd8 {[%clk 0:01:17.8]}
57. Rxc6 {[%clk 0:00:24.9]} 57... Rg4 {[%clk 0:01:17.5]} 58. Be7+ {[%clk
0:00:25.8]} 58... Ke8 {[%clk 0:01:16.2]} 59. Rc8# {[%clk 0:00:27.7]} 1-0

[Event "*** Qualifier 4: Titled Tuesday 3|2 Blitz"]
[Site "Chess.com"]
[Date "2017.04.25"]
[Round "2"]
[White "rasmussvane"]
[Black "Alexander_Moskalenko"]
[Result "0-1"]
[WhiteElo "2518"]
[BlackElo "2632"]
[TimeControl "180+2"]
[EndTime "13:22:10 PDT"]
[Termination "Alexander_Moskalenko won by resignation"]

1. Nf3 {[%clk 0:03:02]} 1... b6 {[%clk 0:02:56.8]} 2. g3 {[%clk 0:02:59.6]} 2...
Bb7 {[%clk 0:02:58.1]} 3. Bg2 {[%clk 0:03:01.1]} 3... Nf6 {[%clk 0:02:55.4]} 4.
O-O {[%clk 0:03:02]} 4... g6 {[%clk 0:02:53.2]} 5. c4 {[%clk 0:03:01.7]} 5...
Bg7 {[%clk 0:02:52.6]} 6. d4 {[%clk 0:03:03]} 6... e6 {[%clk 0:02:54.2]} 7. Nc3
{[%clk 0:03:03.2]} 7... Ne4 {[%clk 0:02:43]} 8. Nxe4 {[%clk 0:02:58.8]} 8...
Bxe4 {[%clk 0:02:44.9]} 9. Bg5 {[%clk 0:02:52.3]} 9... Qc8 {[%clk 0:02:44.3]}
10. Qd2 {[%clk 0:02:52.4]} 10... O-O {[%clk 0:02:38.4]} 11. Bh6 {[%clk
0:02:53.2]} 11... d6 {[%clk 0:02:38.6]} 12. Bxg7 {[%clk 0:02:53.2]} 12... Kxg7
{[%clk 0:02:40.5]} 13. Qf4 {[%clk 0:02:53.3]} 13... Qb7 {[%clk 0:02:37.9]} 14.
c5 {[%clk 0:02:44.8]} 14... Qd5 {[%clk 0:02:29.9]} 15. Rfc1 {[%clk 0:02:36]}
15... Nc6 {[%clk 0:02:27.6]} 16. Qe3 {[%clk 0:02:31.3]} 16... Rfd8 {[%clk
0:02:21.4]} 17. Rc3 {[%clk 0:01:55]} 17... dxc5 {[%clk 0:02:12.2]} 18. dxc5
{[%clk 0:01:55.6]} 18... b5 {[%clk 0:02:13.8]} 19. a3 {[%clk 0:01:42.7]} 19...
e5 {[%clk 0:02:14.7]} 20. Rcc1 {[%clk 0:01:40.9]} 20... a6 {[%clk 0:02:09.2]}
21. Bf1 {[%clk 0:01:34.8]} 21... h6 {[%clk 0:02:04.9]} 22. Bg2 {[%clk
0:01:29.8]} 22... Rd7 {[%clk 0:01:53.5]} 23. h4 {[%clk 0:01:29.1]} 23... f5
{[%clk 0:01:51.7]} 24. h5 {[%clk 0:01:19.6]} 24... g5 {[%clk 0:01:46.8]} 25. b4
{[%clk 0:01:18.6]} 25... Rad8 {[%clk 0:01:46.1]} 26. Re1 {[%clk 0:01:12.4]}
26... Bxf3 {[%clk 0:01:40.4]} 27. Bxf3 {[%clk 0:01:04.6]} 27... e4 {[%clk
0:01:40.4]} 28. Bg2 {[%clk 0:01:06]} 28... Qe5 {[%clk 0:01:42]} 29. g4 {[%clk
0:01:02.1]} 29... Nd4 {[%clk 0:01:42.1]} 30. Rac1 {[%clk 0:01:02.7]} 30... Re7
{[%clk 0:01:23.1]} 31. gxf5 {[%clk 0:00:56.2]} 31... Nxf5 {[%clk 0:01:25]} 32.
Qc3 {[%clk 0:00:57.2]} 32... e3 {[%clk 0:01:23.2]} 33. fxe3 {[%clk 0:00:53.8]}
33... Nxe3 {[%clk 0:01:23.3]} 34. Qxe5+ {[%clk 0:00:53.8]} 34... Rxe5 {[%clk
0:01:24.3]} 35. Bb7 {[%clk 0:00:55.1]} 35... Rd4 {[%clk 0:01:22.6]} 36. Bf3
{[%clk 0:00:48.7]} 36... g4 {[%clk 0:01:23.3]} 37. Bb7 {[%clk 0:00:48.3]} 37...
Kf6 {[%clk 0:01:23]} 38. Rc3 {[%clk 0:00:47.8]} 38... Kg5 {[%clk 0:01:18.8]} 39.
Rd3 {[%clk 0:00:46.1]} 39... Nf5 {[%clk 0:01:15.4]} 40. Rxd4 {[%clk 0:00:36.1]}
40... Nxd4 {[%clk 0:01:17.3]} 41. Kf2 {[%clk 0:00:37.7]} 41... Kxh5 {[%clk
0:01:15.3]} 42. Bxa6 {[%clk 0:00:37.8]} 42... Kg5 {[%clk 0:01:16.4]} 43. e3
{[%clk 0:00:35.8]} 43... Nc2 {[%clk 0:01:14.2]} 44. Re2 {[%clk 0:00:33.7]} 44...
Nxa3 {[%clk 0:01:14.8]} 45. Ra2 {[%clk 0:00:34.6]} 45... Nc4 {[%clk 0:01:15.6]}
46. Re2 {[%clk 0:00:30.4]} 46... c6 {[%clk 0:01:15.8]} 47. Bb7 {[%clk
0:00:31.3]} 47... Re6 {[%clk 0:01:15.5]} 48. Bc8 {[%clk 0:00:29.3]} 48... Rf6+
{[%clk 0:01:16.3]} 49. Kg2 {[%clk 0:00:30.5]} 49... h5 {[%clk 0:01:18.2]} 50. e4
{[%clk 0:00:31.8]} 50... Ne5 {[%clk 0:01:19.4]} 51. Bf5 {[%clk 0:00:29.1]} 51...
h4 {[%clk 0:01:19.9]} 52. Rd2 {[%clk 0:00:30.3]} 52... Kf4 {[%clk 0:01:20.6]}
53. Rf2+ {[%clk 0:00:31]} 53... Ke3 {[%clk 0:01:22]} 54. Rf1 {[%clk 0:00:27.8]}
54... Rf8 {[%clk 0:01:20.6]} 55. Re1+ {[%clk 0:00:21.3]} 55... Kf4 {[%clk
0:01:21.2]} 56. Rf1+ {[%clk 0:00:22.4]} 56... Kg5 {[%clk 0:01:22.1]} 57. Rf2
{[%clk 0:00:23.3]} 57... Rd8 {[%clk 0:01:21.7]} 58. Ra2 {[%clk 0:00:23.4]} 58...
h3+ {[%clk 0:01:21.6]} 59. Kh2 {[%clk 0:00:23.8]} 59... Kh4 {[%clk 0:01:21.3]}
60. Ra7 {[%clk 0:00:19.6]} 60... Nf3+ {[%clk 0:01:21.4]} 0-1